bitfinex/quotes_BTCUSD_20250212
["timestamp","ask_amount","ask_price","bid_price","bid_amount"]
[1739366776595,0.26487677,96667.0,96666.0,1.6782726]
[1739366776768,0.27987677,96667.0,96666.0,1.6782726]
[1739366776972,0.45287677,96667.0,96666.0,1.6782726]
[1739366777190,0.43787677,96667.0,96666.0,1.6782726]
[1739366777389,0.43787677,96667.0,96666.0,1.5532726]
[1739366777510,0.45187677,96667.0,96666.0,1.5532726]
[1739366777733,0.44487677,96667.0,96666.0,1.5532726]
[1739366778277,0.45187677,96667.0,96666.0,1.5532726]
[1739366778609,0.44487677,96667.0,96666.0,1.5532726]
[1739366778898,0.45087677,96667.0,96666.0,1.5532726]
[1739366780007,0.02020212,96667.0,96666.0,1.5532726]
[1739366780247,0.02020212,96667.0,96666.0,1.6312726]
[1739366780480,0.02020212,96667.0,96666.0,1.6337443]
[1739366780924,0.00620212,96667.0,96666.0,1.6337443]
[1739366781097,0.01420212,96667.0,96666.0,1.6337443]
[1739366782511,0.00020212,96667.0,96666.0,1.6337443]
[1739366782961,0.00320212,96667.0,96666.0,1.6337443]
[1739366784903,0.00520212,96667.0,96666.0,1.6337443]
[1739366785524,0.00320212,96667.0,96666.0,1.63155901]
[1739366787231,0.00320212,96667.0,96666.0,1.78006266]
[1739366788452,0.0001066,96694.0,96666.0,1.78106266]
[1739366788662,0.00015058,96694.0,96692.0,0.155131]
[1739366788918,0.00015058,96694.0,96693.0,0.1257]
[1739366789145,0.00015058,96694.0,96693.0,0.12878536]
[1739366790752,0.00115058,96694.0,96693.0,0.12878536]
[1739366791097,0.00115058,96694.0,96693.0,0.12978536]
[1739366792401,0.00015058,96694.0,96693.0,0.00578536]
[1739366792647,0.00015058,96694.0,96693.0,0.00508536]
[1739366793059,0.00015058,96694.0,96693.0,0.00308536]
[1739366793394,0.00415058,96694.0,96693.0,0.15921536]
[1739366793535,0.00415058,96694.0,96693.0,0.15613]
[1739366793731,0.00415058,96694.0,96693.0,0.15919413]
[1739366793732,0.00515058,96694.0,96693.0,0.15919413]
[1739366793937,0.00515058,96694.0,96693.0,0.00406413]
[1739366794345,0.00115058,96694.0,96693.0,0.00306413]
[1739366794542,0.00015058,96694.0,96693.0,0.00306413]
[1739366794743,0.00015058,96694.0,96688.0,0.155137]
[1739366794989,0.00015058,96694.0,96693.0,0.00306413]
[1739366795223,0.02315058,96694.0,96681.0,0.155149]
[1739366795433,0.00015058,96694.0,96682.0,0.206863]
[1739366795601,0.00015058,96694.0,96683.0,0.1314]
[1739366795837,0.00315058,96694.0,96683.0,0.33826]
[1739366796016,0.00315058,96694.0,96685.0,0.206857]
[1739366796156,0.00315058,96694.0,96692.0,0.155131]
[1739366796561,0.00315058,96694.0,96693.0,0.00303607]
[1739366796779,0.00015058,96694.0,96693.0,0.00303607]
[1739366796973,0.00015058,96694.0,96693.0,0.00325972]
[1739366797184,0.00315058,96694.0,96693.0,0.00325972]
[1739366797765,0.00015058,96694.0,96693.0,0.00325972]
[1739366798532,0.00015058,96694.0,96693.0,0.00429382]
[1739366798732,0.00015058,96694.0,96693.0,0.00529382]
[1739366799008,0.00215058,96694.0,96693.0,0.00529382]
[1739366799157,0.00215058,96694.0,96693.0,0.00425972]
[1739366799581,0.00015058,96694.0,96693.0,0.00425972]
[1739366799783,0.00115058,96694.0,96693.0,0.01025972]
[1739366799979,0.00115058,96694.0,96693.0,0.00925972]
[1739366800409,0.00015058,96694.0,96693.0,0.00325972]
[1739366800598,0.00015058,96694.0,96693.0,0.00425972]
[1739366800759,0.00115058,96694.0,96693.0,0.01025972]
[1739366801597,0.15627858,96694.0,96693.0,0.01025972]
[1739366801815,0.15627858,96694.0,96693.0,0.00722365]
[1739366802018,0.00115058,96694.0,96693.0,0.00722365]
[1739366802162,0.02415058,96694.0,96693.0,0.00722365]
[1739366802547,0.02315058,96694.0,96693.0,0.00022365]
[1739366803228,0.02715058,96694.0,96693.0,0.00122365]
[1739366803760,0.00415058,96694.0,96693.0,0.00122365]
[1739366803995,0.00515058,96694.0,96693.0,0.00122365]
[1739366804551,0.00515058,96694.0,96693.0,0.28335365]
[1739366804777,0.00415058,96694.0,96693.0,0.28646752]
[1739366805027,0.00115058,96694.0,96693.0,0.38797117]
[1739366805813,0.00215058,96694.0,96693.0,0.38797117]
[1739366806331,0.00615058,96694.0,96693.0,0.38897117]
[1739366806917,0.00015058,96694.0,96693.0,0.38797117]
[1739366807169,0.00115058,96694.0,96693.0,0.39297117]
[1739366807629,0.00015058,96694.0,96693.0,0.38897117]
[1739366807878,0.00115058,96694.0,96693.0,0.40162678]
[1739366808129,0.00115058,96694.0,96693.0,0.29812313]
[1739366808356,0.00115058,96694.0,96693.0,0.29912313]
[1739366809310,0.00115058,96694.0,96693.0,0.29146752]
[1739366809834,0.00115058,96694.0,96693.0,0.39397117]
[1739366810078,0.00115058,96694.0,96693.0,0.39601177]
[1739366812054,0.0001066,96709.0,96693.0,0.39601177]
[1739366812055,0.0001066,96709.0,96706.0,0.233109]
[1739366812304,0.0001066,96709.0,96706.0,0.34070477]
[1739366813632,0.0011064,96707.0,96706.0,0.35470477]
[1739366813969,0.0001064,96707.0,96706.0,0.34836554]
[1739366814602,0.0011064,96707.0,96706.0,0.35336554]
[1739366814824,0.0021064,96707.0,96706.0,0.35736554]
[1739366815241,0.0031064,96707.0,96706.0,0.36436554]
[1739366816030,0.0021064,96707.0,96706.0,0.35536554]
[1739366816394,0.0031064,96707.0,96706.0,0.36936554]
[1739366816591,0.0031064,96707.0,96706.0,0.39006028]
[1739366816795,0.0031064,96707.0,96706.0,0.40018028]
[1739366817847,0.0031064,96707.0,96706.0,0.39006028]
[1739366818048,0.0031064,96707.0,96706.0,0.45518028]
[1739366818680,6e-07,96709.0,96708.0,0.452406]
[1739366818911,6e-07,96709.0,96708.0,0.55490965]
[1739366819112,6e-07,96709.0,96708.0,0.55691817]
[1739366819369,2e-07,96712.0,96711.0,0.325101]
[1739366819594,2e-07,96712.0,96711.0,0.50750465]
[1739366819747,2e-07,96712.0,96711.0,0.50950676]
[1739366820359,2e-07,96712.0,96711.0,0.52942844]
[1739366820575,2e-07,96712.0,96711.0,0.35942844]
[1739366820738,2e-07,96712.0,96711.0,0.36954844]
[1739366820943,0.0010002,96712.0,96711.0,0.37654844]
[1739366821148,2e-07,96712.0,96711.0,0.35942844]
[1739366821375,0.0010002,96712.0,96711.0,0.37442844]
[1739366821786,0.0010002,96712.0,96711.0,0.36216753]
[1739366822332,0.0010002,96712.0,96711.0,0.36530511]
[1739366822652,2e-07,96712.0,96711.0,0.35730511]
[1739366822899,2e-07,96712.0,96711.0,0.36330511]
[1739366823450,2e-07,96712.0,96711.0,0.35730511]
[1739366823688,2e-07,96712.0,96711.0,0.36330511]
[1739366823858,2e-07,96712.0,96711.0,0.18090146]
[1739366824286,2e-07,96712.0,96711.0,0.16790146]
[1739366824432,2e-07,96712.0,96711.0,0.18790146]
[1739366825314,2e-07,96712.0,96711.0,0.18024069]
[1739366825877,2e-07,96712.0,96711.0,0.16024069]
[1739366826069,2e-07,96712.0,96711.0,0.17424069]
[1739366826471,2e-07,96712.0,96711.0,0.16724069]
[1739366826628,2e-07,96712.0,96711.0,0.17224069]
[1739366827036,2e-07,96712.0,96711.0,0.27577823]
[1739366827247,2e-07,96712.0,96711.0,0.35544434]
[1739366828600,2e-07,96712.0,96711.0,0.36310053]
[1739366829410,2e-07,96712.0,96711.0,0.35610053]
[1739366829791,2e-07,96712.0,96711.0,0.36110053]
[1739366830188,2e-07,96712.0,96711.0,0.35610053]
[1739366830542,2e-07,96712.0,96711.0,0.36310053]
[1739366830918,2e-07,96712.0,96711.0,0.40380053]
[1739366831270,2e-07,96712.0,96711.0,0.57080053]
[1739366832093,2e-07,96712.0,96711.0,0.5811825]
[1739366832311,2e-07,96712.0,96711.0,0.59343241]
[1739366832519,2e-07,96712.0,96711.0,0.58843241]
[1739366832721,2e-07,96712.0,96711.0,0.58383262]
[1739366832926,2e-07,96712.0,96711.0,0.60183262]
[1739366833346,2e-07,96712.0,96711.0,0.59783262]
[1739366833551,2e-07,96712.0,96711.0,0.57383262]
[1739366833754,2e-07,96712.0,96711.0,0.59911262]
[1739366834170,2e-07,96712.0,96711.0,0.60611262]
[1739366834373,2e-07,96712.0,96711.0,0.58411262]
[1739366834596,2e-07,96712.0,96711.0,0.59911262]
[1739366835007,2e-07,96712.0,96711.0,0.45611262]
[1739366835217,0.155051,96743.0,96735.0,0.155062]
[1739366835369,0.155051,96742.0,96735.0,0.155062]
[1739366835573,0.023,96740.0,96736.0,0.00496155]
[1739366835813,0.178059,96737.0,96736.0,0.00496155]
[1739366836240,0.023,96736.0,96730.0,0.15507]
[1739366836759,0.023,96736.0,96727.0,0.206767]
[1739366837117,0.178057,96739.0,96728.0,0.00301841]
[1739366837327,0.178059,96737.0,96736.0,0.003]
[1739366837553,0.178061,96736.0,96729.0,0.155072]
[1739366837708,0.023,96739.0,96732.0,0.155066]
[1739366837911,0.023,96736.0,96733.0,0.00301496]
[1739366838106,0.023,96736.0,96727.0,0.003]
[1739366838412,0.023,96738.0,96734.0,0.00301427]
[1739366838831,0.023,96739.0,96733.0,0.155064]
[1739366839041,0.023,96739.0,96735.0,0.00301358]
[1739366839211,0.023,96742.0,96734.0,0.16003021]
[1739366839410,0.178052,96742.0,96735.0,0.155061]
[1739366839719,0.001,96736.0,96735.0,0.155061]
[1739366840068,0.023,96740.0,96734.0,0.16003021]
[1739366840274,0.023,96738.0,96734.0,0.00496721]
[1739366840477,0.178062,96735.0,96734.0,0.00596721]
[1739366840675,0.155088,96719.0,96713.0,0.08334419]
[1739366840888,0.155096,96714.0,96713.0,0.08334419]
[1739366841114,0.35959965,96714.0,96713.0,0.08334419]
[1739366841322,0.35959965,96714.0,96703.0,0.08334419]
[1739366841323,0.155102,96710.0,96703.0,0.08334419]
[1739366841528,0.25760565,96710.0,96703.0,0.08334419]
[1739366841860,0.25760565,96710.0,96700.0,0.09177061]
[1739366841861,0.28060565,96710.0,96700.0,0.09177061]
[1739366842486,0.15513,96693.0,96692.0,0.0505621]
[1739366842662,0.17813,96693.0,96692.0,0.0505621]
[1739366843067,0.023,96692.0,96685.0,0.155141]
[1739366843471,0.023,96693.0,96683.0,0.206861]
[1739366843691,0.03,96693.0,96692.0,0.001]
[1739366843903,0.41243365,96693.0,96692.0,0.001]
[1739366844242,0.178147,96682.0,96681.0,4.398e-05]
[1739366844872,0.28065065,96682.0,96681.0,4.398e-05]
[1739366845656,0.29096268,96682.0,96681.0,4.398e-05]
[1739366846381,0.30296268,96682.0,96681.0,0.00104398]
[1739366846576,0.30496268,96682.0,96681.0,0.00104398]
[1739366846982,0.192147,96682.0,96681.0,0.00104398]
[1739366848174,0.29465065,96682.0,96681.0,0.00104398]
[1739366849364,0.44465065,96682.0,96681.0,0.00104398]
[1739366849565,0.61260555,96682.0,96681.0,0.00104398]
[1739366849992,0.63353856,96682.0,96681.0,0.00104398]
[1739366850941,0.52575065,96682.0,96681.0,0.00104398]
[1739366852070,0.27165065,96682.0,96681.0,0.00104398]
[1739366852224,0.014,96682.0,96681.0,0.00104398]
[1739366852420,0.014,96682.0,96677.0,0.206874]
[1739366852622,0.014,96682.0,96681.0,0.00470657]
[1739366853084,0.014,96682.0,96677.0,0.155155]
[1739366853283,0.01032494,96695.0,96678.0,0.00471288]
[1739366853542,0.003,96682.0,96681.0,0.155149]
[1739366853744,0.012,96682.0,96681.0,0.155149]
[1739366853963,0.012,96682.0,96681.0,0.15985557]
[1739366854131,0.015,96682.0,96681.0,0.15985557]
[1739366854847,0.006,96682.0,96681.0,0.15985557]
[1739366855472,0.184147,96682.0,96681.0,0.00470657]
[1739366855838,0.023,96681.0,96678.0,0.001]
[1739366856251,0.023,96681.0,96676.0,0.206875]
[1739366856446,0.023,96681.0,96677.0,0.0047827]
[1739366856697,0.023,96681.0,96666.0,0.55039129]
[1739366856698,0.10250365,96695.0,96672.0,0.155162]
[1739366856900,0.0001066,96682.0,96672.0,0.155162]
[1739366857106,0.10261025,96682.0,96673.0,0.00479112]
[1739366857297,0.002,96681.0,96668.0,0.206893]
[1739366857477,0.002,96681.0,96667.0,0.15517]
[1739366857687,0.10261025,96682.0,96668.0,0.00480165]
[1739366857688,0.30947525,96682.0,96668.0,0.00480165]
[1739366857855,0.155155,96678.0,96668.0,0.00480165]
[1739366858064,0.155155,96678.0,96670.0,0.155166]
[1739366858262,0.155155,96678.0,96676.0,0.001]
[1739366858459,0.155153,96679.0,96676.0,0.001]
[1739366858663,0.155153,96679.0,96677.0,0.0047827]
[1739366858897,0.214865,96681.0,96676.0,0.001]
[1739366859099,0.008,96681.0,96676.0,0.001]
[1739366859300,0.10261025,96682.0,96677.0,0.0047827]
[1739366859498,0.10261025,96682.0,96670.0,0.155165]
[1739366859755,0.178156,96677.0,96671.0,0.00479533]
[1739366860041,0.10261025,96682.0,96671.0,0.00479533]
[1739366860368,0.155153,96679.0,96672.0,0.00479322]
[1739366860571,0.11309436,96682.0,96672.0,0.00479322]
[1739366860744,0.31995836,96682.0,96672.0,0.00479322]
[1739366860965,0.155161,96674.0,96668.0,0.001]
[1739366861169,0.155161,96674.0,96673.0,0.00479112]
[1739366861307,0.12009436,96682.0,96677.0,0.001]
[1739366861511,0.155151,96680.0,96677.0,0.001]
[1739366861704,0.206865,96681.0,96678.0,0.00478059]
[1739366861904,0.15,96680.0,96666.0,0.57105503]
[1739366862110,0.11309436,96682.0,96667.0,0.00480375]
[1739366862336,0.15,96681.0,96667.0,0.00480375]
[1739366862543,0.30515,96681.0,96674.0,0.15516]
[1739366862746,0.15,96681.0,96674.0,0.15516]
[1739366863016,0.15,96681.0,96666.0,0.57105503]
[1739366863017,0.152,96681.0,96678.0,0.155153]
[1739366863219,0.002,96681.0,96680.0,0.155151]
[1739366863589,0.002,96681.0,96680.0,0.15992738]
[1739366864190,0.0001066,96682.0,96680.0,0.00477638]
[1739366864397,0.0001066,96682.0,96681.0,0.155149]
[1739366864789,0.0001066,96682.0,96681.0,0.15992328]
[1739366866497,0.0001066,96682.0,96681.0,0.00477428]
[1739366866849,0.155149,96681.0,96674.0,0.155159]
[1739366867258,0.206865,96681.0,96675.0,0.00475655]
[1739366867462,0.155157,96676.0,96675.0,0.00475655]
[1739366867673,0.206872,96678.0,96666.0,0.57105503]
[1739366867874,0.206867,96681.0,96675.0,0.00475655]
[1739366868073,0.155153,96679.0,96671.0,0.155165]
[1739366868255,0.206867,96681.0,96666.0,0.57105503]
[1739366868256,0.0001066,96682.0,96669.0,0.155167]
[1739366868461,0.155158,96676.0,96669.0,0.155167]
[1739366868663,0.155158,96676.0,96675.0,0.002]
[1739366869007,0.206871,96679.0,96666.0,0.77795203]
[1739366869211,0.15516,96675.0,96667.0,0.155171]
[1739366869406,0.206868,96680.0,96667.0,0.0047734]
[1739366869614,0.0041066,96682.0,96668.0,0.206893]
[1739366869844,0.0041066,96682.0,96669.0,0.155167]
[1739366870054,0.155159,96675.0,96669.0,0.00476919]
[1739366870458,0.155158,96676.0,96669.0,0.00476919]
[1739366870661,0.155159,96675.0,96669.0,0.00476919]
[1739366870773,0.206876,96677.0,96669.0,0.00476919]
[1739366870983,0.155165,96672.0,96669.0,0.00476919]
[1739366871230,0.155165,96672.0,96666.0,0.57105503]
[1739366871440,0.155165,96672.0,96670.0,0.00476708]
[1739366871640,0.155165,96672.0,96666.0,0.57105503]
[1739366871814,0.0001066,96682.0,96671.0,0.00476497]
[1739366872017,0.206876,96676.0,96666.0,0.57105503]
[1739366872217,0.206876,96676.0,96672.0,0.00476287]
[1739366872476,0.206872,96678.0,96668.0,0.155169]
[1739366872682,0.155159,96675.0,96673.0,0.00476076]
[1739366872967,0.155156,96677.0,96674.0,0.00475866]
[1739366873172,0.0061066,96682.0,96674.0,0.00475866]
[1739366873345,0.0061066,96682.0,96681.0,0.155149]
[1739366873730,0.0061066,96682.0,96681.0,0.15989292]
[1739366874356,0.0001066,96682.0,96681.0,0.15989292]
[1739366876061,0.0001066,96682.0,96681.0,0.00474392]
[1739366876241,0.0001066,96682.0,96674.0,0.155159]
[1739366876836,0.0001066,96682.0,96675.0,0.0047691]
[1739366877214,0.15515,96681.0,96674.0,0.15516]
[1739366877461,0.15515,96681.0,96676.0,0.004767]
[1739366877756,0.0091066,96682.0,96681.0,0.001]
[1739366878160,0.0091066,96682.0,96681.0,0.00575647]
[1739366878363,0.0001066,96682.0,96676.0,0.206875]
[1739366878512,0.0001066,96682.0,96681.0,0.00475647]
[1739366878723,0.0001066,96682.0,96678.0,0.206872]
[1739366878924,0.0001066,96682.0,96681.0,0.155149]
[1739366879100,0.0001066,96682.0,96681.0,0.15990547]
[1739366879305,4.0691956,96682.0,96681.0,0.15990547]
[1739366879512,4.0691956,96682.0,96681.0,0.155149]
[1739366880422,4.0691956,96682.0,96677.0,0.155154]
[1739366880624,4.0681956,96682.0,96677.0,0.155154]
[1739366880823,4.0681956,96682.0,96651.0,0.02026338]
[1739366881073,4.0681956,96682.0,96644.0,0.01022386]
[1739366881074,4.0681956,96682.0,96669.0,0.206889]
[1739366881391,0.155157,96677.0,96666.0,0.77795103]
[1739366881662,4.0681956,96682.0,96666.0,0.57105503]
[1739366881855,0.15515,96681.0,96674.0,0.155159]
[1739366882150,0.155151,96680.0,96673.0,0.206881]
[1739366882355,0.155151,96680.0,96674.0,0.155159]
[1739366882566,4.0681956,96682.0,96675.0,0.155158]
[1739366882770,4.0681956,96682.0,96674.0,0.15516]
[1739366882968,4.0681956,96682.0,96673.0,0.206881]
[1739366883125,4.0681956,96682.0,96674.0,0.15516]
[1739366883530,4.0681956,96682.0,96666.0,0.57105503]
[1739366883748,0.155155,96678.0,96669.0,0.155168]
[1739366883931,4.0681956,96682.0,96674.0,0.155159]
[1739366883932,4.08455434,96682.0,96674.0,0.155159]
[1739366884253,4.08455434,96682.0,96680.0,0.15515]
[1739366884456,4.0741956,96682.0,96666.0,0.57105503]
[1739366884637,0.206865,96681.0,96669.0,0.155168]
[1739366884838,0.003,96678.0,96666.0,0.57105503]
[1739366885263,0.25766065,96677.0,96666.0,0.57105503]
[1739366885530,0.155171,96668.0,96666.0,0.57105503]
[1739366885728,0.155171,96668.0,96667.0,0.01246385]
[1739366885949,0.28067465,96668.0,96667.0,0.01246385]
[1739366886154,0.51739539,96668.0,96667.0,0.00769859]
[1739366886388,0.36739539,96668.0,96667.0,0.00769859]
[1739366886594,0.32587465,96668.0,96667.0,0.00769859]
[1739366886750,0.28067465,96668.0,96666.0,0.57105503]
[1739366887034,0.10250365,96667.0,96666.0,0.57105503]
[1739366887259,0.12550365,96667.0,96666.0,0.57105503]
[1739366887476,0.12550365,96667.0,96666.0,0.44605503]
[1739366887892,0.12550365,96667.0,96666.0,0.45084262]
[1739366888306,0.13450365,96667.0,96666.0,0.45184262]
[1739366888675,0.12550365,96667.0,96666.0,0.45084262]
[1739366889191,0.13450365,96667.0,96666.0,0.45184262]
[1739366889361,0.13550365,96667.0,96666.0,0.45184262]
[1739366889874,0.33159381,96667.0,96666.0,0.45184262]
[1739366890009,0.33059381,96667.0,96666.0,0.45184262]
[1739366890822,0.32159381,96667.0,96666.0,0.45084262]
[1739366891172,0.33059381,96667.0,96666.0,0.45184262]
[1739366891320,0.33459381,96667.0,96666.0,0.45184262]
[1739366891520,0.33059381,96667.0,96666.0,0.45184262]
[1739366891979,0.33459381,96667.0,96666.0,0.45184262]
[1739366892136,0.32559381,96667.0,96666.0,0.45084262]
[1739366892538,0.35919001,96667.0,96666.0,0.45284262]
[1739366893084,0.35919001,96667.0,96666.0,0.32784262]
[1739366893388,0.35919001,96667.0,96666.0,0.32806648]
[1739366894001,0.35019001,96667.0,96666.0,0.32706648]
[1739366894203,0.36919001,96667.0,96666.0,0.32806648]
[1739366894409,0.36119001,96667.0,96666.0,0.32706648]
[1739366894608,0.36119001,96667.0,96666.0,0.32806648]
[1739366894812,0.51136101,96667.0,96666.0,0.32706648]
[1739366895039,0.52036101,96667.0,96666.0,0.32706648]
[1739366895216,0.52436101,96667.0,96666.0,0.32806648]
[1739366895448,0.44287085,96667.0,96666.0,0.32806648]
[1739366895655,0.36377085,96667.0,96666.0,0.32806648]
[1739366896249,0.37377085,96667.0,96666.0,0.32806648]
[1739366896383,0.45377085,96667.0,96666.0,0.32806648]
[1739366896799,0.61377085,96667.0,96666.0,0.15757582]
[1739366896995,0.285307,96645.0,96644.0,0.00022386]
[1739366897295,0.41081065,96645.0,96644.0,0.00031938]
[1739366897499,0.32821065,96645.0,96644.0,0.00031938]
[1739366898245,0.34321065,96645.0,96644.0,0.00131938]
[1739366898801,0.33221065,96645.0,96644.0,0.00031938]
[1739366899044,0.35121065,96645.0,96644.0,0.00231938]
[1739366899218,0.44541192,96645.0,96644.0,0.00131938]
[1739366899437,0.44541192,96645.0,96644.0,0.00231938]
[1739366899640,0.47013237,96645.0,96644.0,0.00231938]
[1739366899844,0.42263237,96645.0,96644.0,0.00231938]
[1739366900046,0.55763237,96645.0,96644.0,0.00131938]
[1739366900252,0.56763237,96645.0,96644.0,0.00131938]
[1739366900468,0.56763237,96645.0,96632.0,0.00022365]
[1739366900469,0.155226,96633.0,96632.0,0.00022365]
[1739366900780,0.31694835,96633.0,96632.0,0.00066359]
[1739366900987,0.25772965,96633.0,96632.0,0.00066359]
[1739366901190,0.28072965,96633.0,96632.0,0.00066359]
[1739366901934,0.28572965,96633.0,96632.0,0.00166359]
[1739366902464,0.29600111,96633.0,96632.0,0.00166359]
[1739366902866,0.31000111,96633.0,96632.0,0.00266359]
[1739366903093,0.28700111,96633.0,96632.0,0.00266359]
[1739366903250,0.31000111,96633.0,96632.0,0.00266359]
[1739366903908,0.33187468,96633.0,96632.0,0.00266359]
[1739366904308,0.31000111,96633.0,96632.0,0.00266359]
[1739366906238,0.46000111,96633.0,96632.0,0.00266359]
[1739366908530,0.45994763,96633.0,96632.0,0.00266359]
[1739366909441,0.46994763,96633.0,96632.0,0.00266359]
[1739366911443,0.46494763,96633.0,96632.0,0.00166359]
[1739366911568,0.57073499,96633.0,96632.0,0.00266359]
[1739366911991,0.55673499,96633.0,96632.0,0.00166359]
[1739366912211,0.57173499,96633.0,96632.0,0.00166359]
[1739366912614,0.305248,96619.0,96612.0,0.00022386]
[1739366912861,0.45746448,96619.0,96618.0,0.00026803]
[1739366913037,0.173,96618.0,96611.0,2.15325137]
[1739366913214,0.28076365,96612.0,96611.0,2.15325137]
[1739366913936,0.30747648,96612.0,96611.0,2.15325137]
[1739366914170,0.34241878,96612.0,96611.0,2.15325137]
[1739366914372,0.36913161,96612.0,96611.0,2.15325137]
[1739366914573,0.37313161,96612.0,96611.0,2.15325137]
[1739366914769,0.52307823,96612.0,96611.0,2.15325137]
[1739366914998,0.54355427,96612.0,96611.0,2.15325137]
[1739366915206,0.53719224,96612.0,96611.0,2.15325137]
[1739366915925,0.54819224,96612.0,96611.0,2.15325137]
[1739366916423,1.24018224,96612.0,96611.0,1.94217167]
[1739366916650,1.26518224,96612.0,96611.0,1.76582484]
[1739366916958,1.26518224,96612.0,96611.0,0.88360376]
[1739366916959,0.71916059,96612.0,96611.0,0.88360376]
[1739366917147,1.27843776,96612.0,96611.0,0.6515373]
[1739366917320,1.29343776,96612.0,96611.0,0.34940024]
[1739366917484,1.15102376,96612.0,96611.0,0.16229424]
[1739366917690,1.15102376,96612.0,96611.0,0.12089024]
[1739366917894,1.15102376,96612.0,96572.0,0.00022386]
[1739366917895,0.305326,96571.0,96570.0,0.00022386]
[1739366918095,0.40782965,96571.0,96570.0,0.00027864]
[1739366918515,0.40577407,96571.0,96570.0,0.00027864]
[1739366919781,0.40877407,96571.0,96570.0,0.00027864]
[1739366920187,0.41077407,96571.0,96570.0,0.00027864]
[1739366922869,0.51627058,96571.0,96570.0,0.00027864]
[1739366923415,0.52644621,96571.0,96570.0,0.00027864]
[1739366923940,0.4209497,96571.0,96570.0,0.00027864]
[1739366926452,0.11767928,96571.0,96570.0,0.00027864]
[1739366926693,0.27300528,96571.0,96570.0,0.00027864]
[1739366927275,0.10750365,96571.0,96570.0,0.00027864]
[1739366927476,0.10750365,96571.0,96570.0,0.00507701]
[1739366928867,0.005,96571.0,96570.0,0.16040401]
[1739366930295,0.003,96571.0,96570.0,0.16040401]
[1739366930702,0.0031066,96571.0,96570.0,0.16040401]
[1739366931102,0.0051066,96571.0,96570.0,0.16040401]
[1739366931366,0.0031066,96571.0,96570.0,0.16040401]
[1739366931998,0.0001066,96571.0,96570.0,0.16143949]
[1739366932193,0.0011066,96571.0,96570.0,0.16140401]
[1739366932423,0.0011066,96571.0,96570.0,0.15660564]
[1739366932635,0.0001066,96571.0,96570.0,0.16040401]
[1739366932832,0.0001066,96571.0,96570.0,0.00507701]
[1739366933065,0.0011066,96571.0,96570.0,0.00227864]
[1739366933267,0.0011066,96571.0,96570.0,0.16240401]
[1739366933439,0.0001066,96571.0,96570.0,0.00507701]
[1739366933648,0.0011066,96571.0,96570.0,0.16240401]
[1739366934174,0.0021066,96571.0,96570.0,0.16240401]
[1739366934364,0.0011066,96571.0,96570.0,0.16240401]
[1739366934607,0.0021066,96571.0,96570.0,0.16240401]
[1739366934988,0.0011066,96571.0,96570.0,0.16040401]
[1739366935147,0.01,96636.0,96601.0,0.00479837]
[1739366935352,0.10250365,96609.0,96595.0,0.00479837]
[1739366935545,0.155276,96602.0,96601.0,0.00479837]
[1739366935751,0.25777965,96602.0,96601.0,0.00479837]
[1739366936147,0.10250365,96602.0,96601.0,0.00479837]
[1739366936374,0.10250365,96602.0,96601.0,0.00485315]
[1739366936573,0.10250365,96602.0,96601.0,5.478e-05]
[1739366936574,0.25777965,96602.0,96601.0,5.478e-05]
[1739366936775,0.26177965,96602.0,96601.0,5.478e-05]
[1739366936979,0.26677965,96602.0,96601.0,5.478e-05]
[1739366937367,0.26977965,96602.0,96601.0,5.478e-05]
[1739366937720,0.26677965,96602.0,96601.0,5.478e-05]
[1739366937850,0.11150365,96602.0,96601.0,5.478e-05]
[1739366938052,0.11150365,96602.0,96601.0,0.00485315]
[1739366938511,0.26677965,96602.0,96601.0,5.478e-05]
[1739366938684,0.25777965,96602.0,96601.0,5.478e-05]
[1739366938908,0.27577965,96602.0,96601.0,0.00105478]
[1739366939301,0.26277965,96602.0,96601.0,5.478e-05]
[1739366939507,0.26577965,96602.0,96601.0,5.478e-05]
[1739366939663,0.26677965,96602.0,96601.0,0.00105478]
[1739366940136,0.27177965,96602.0,96601.0,0.00105478]
[1739366940632,0.26877965,96602.0,96601.0,5.478e-05]
[1739366941245,0.11350365,96602.0,96601.0,5.478e-05]
[1739366941783,0.11350365,96602.0,96601.0,0.16013015]
[1739366941784,0.011,96602.0,96601.0,0.16013015]
[1739366941991,0.013,96602.0,96601.0,0.00485315]
[1739366942214,0.017,96602.0,96601.0,0.21188915]
[1739366942423,0.017,96602.0,96599.0,0.207039]
[1739366942424,0.004,96602.0,96599.0,0.207039]
[1739366942829,0.017,96602.0,96599.0,0.207039]
[1739366943027,0.009,96602.0,96601.0,0.207036]
[1739366943227,0.0001066,96633.0,96601.0,0.00103503]
[1739366943441,0.10250365,96630.0,96602.0,0.00103501]
[1739366943642,0.10250365,96630.0,96626.0,0.155236]
[1739366943842,0.08347606,96631.0,96630.0,0.155231]
[1739366943843,0.00013187,96631.0,96630.0,0.155231]
[1739366944781,0.00013187,96631.0,96629.0,0.155231]
[1739366945370,0.00013187,96631.0,96618.0,0.206998]
[1739366945371,0.00713187,96631.0,96626.0,0.206981]
[1739366945574,0.00713187,96631.0,96627.0,0.155234]
[1739366945788,0.00813187,96631.0,96604.0,0.20703]
[1739366945984,0.10250365,96630.0,96579.0,0.01]
[1739366946184,0.10250365,96630.0,96603.0,0.207032]
[1739366946360,0.155236,96627.0,96618.0,0.155249]
[1739366946559,0.10250365,96626.0,96605.0,0.207028]
[1739366946791,0.10250365,96626.0,96600.0,0.00103497]
[1739366947158,0.10250365,96626.0,96622.0,0.155243]
[1739366947423,0.10250365,96626.0,96600.0,0.00103497]
[1739366947628,0.10250365,96626.0,96618.0,0.207]
[1739366947935,0.10250365,96626.0,96590.0,0.00103496]
[1739366948116,0.10250365,96626.0,96604.0,0.02075167]
[1739366948656,0.10250365,96626.0,96618.0,0.155249]
[1739366949069,0.10250365,96626.0,96619.0,0.155247]
[1739366949369,0.10250365,96626.0,96620.0,0.155246]
[1739366949751,0.10950365,96626.0,96606.0,0.207026]
[1739366949987,0.10950365,96626.0,96620.0,0.155247]
[1739366950338,0.10650365,96626.0,96618.0,0.155249]
[1739366950494,0.10650365,96626.0,96620.0,0.001]
[1739366950671,0.10750365,96626.0,96620.0,0.001]
[1739366950874,0.155239,96625.0,96620.0,0.001]
[1739366951178,0.155241,96624.0,96620.0,0.001]
[1739366951752,0.10750365,96626.0,96620.0,0.001]
[1739366951926,0.155239,96625.0,96620.0,0.001]
[1739366952152,0.155239,96625.0,96615.0,0.155254]
[1739366952345,0.10250365,96625.0,96620.0,0.001]
[1739366952553,0.001,96624.0,96620.0,0.001]
[1739366952728,0.15624,96624.0,96614.0,0.155256]